{"text_format":"1","workbook":"xlsx","n_sheets":5,"sheets":["How to Use This Tool","Enter Company Names","CSRHub Ratings","TNFD Score Overview","TNFD Mapping"],"not_rendered":{"charts":0,"images":6,"macros":1,"external_links":0,"defined_names":37,"comments":1,"pivot_tables":0},"unopened":[],"bounds":{"document_bytes":16777216,"sheet_cells":100000,"rows_first":2000,"rows_last":500,"rows_between":2000,"halvings":0,"cell_chars":16384,"cell_head_chars":4096},"cells_cut":0,"cells_raw":0,"read":"whole","date_system":"1900"}

{"sheet":"How to Use This Tool","index":0,"n_rows":59,"n_cols":17,"rows_kept":59,"cut":false,"hidden":false,"merged":[[24,20,24,21],[8,0,8,6],[5,0,5,6],[14,0,14,6],[19,0,19,3],[20,0,20,6],[5,8,5,9],[7,8,7,16],[44,0,46,6],[52,0,56,6],[13,0,13,6],[7,0,7,6],[29,0,29,6],[30,0,30,6],[33,0,33,6],[34,0,41,6],[43,0,43,1],[25,0,25,3],[26,0,26,6]]}
[]
[]
[]
[]
[]
["How to Use the CSRHub TNFD Calculator",null,null,null,null,null,null,null,"TNFD Threshold Control"]
[null,null,null,null,null,null,null,null,"Customize your TNFD Materiality Level",0.85]
["Background",null,null,null,null,null,null,null,"TNFD Compliance Results"]
["TNFD stands for the Taskforce on Nature Related Financial Disclosures.  The goal of the TNFD to provide a global framework for organizations to identify, assess, manage, and disclose nature-related risks and opportunities, so that financial and business decisions support nature-positive outcomes and long-term resilience.",null,null,null,null,null,null,null,"Company Name",{"$f":"'TNFD Score Overview'!B14","v":"GHG emissions"},{"$f":"'TNFD Score Overview'!C14","v":"Total spatial footprint"},{"$f":"'TNFD Score Overview'!D14","v":"Extent of land/ freshwater/ ocean-use\nchange"},{"$f":"'TNFD Score Overview'!E14","v":"Pollutants released to soil split by type\n"},{"$f":"'TNFD Score Overview'!F14","v":"Wastewater discharged"},{"$f":"'TNFD Score Overview'!G14","v":"Waste generation and disposal\n"},{"$f":"'TNFD Score Overview'!H14","v":"Plastic pollution"},{"$f":"'TNFD Score Overview'!I14","v":"Non-GHG air pollutants"}]
[null,null,null,null,null,null,null,null,{"$f":"'CSRHub Ratings'!B15","v":"American Well Corp"},{"$f":"'TNFD Score Overview'!B15","v":44.229500000000002},{"$f":"'TNFD Score Overview'!C15","v":48.6785},{"$f":"'TNFD Score Overview'!D15","v":49.319000000000003},{"$f":"'TNFD Score Overview'!E15","v":48.372500000000002},{"$f":"'TNFD Score Overview'!F15","v":48.888500000000008},{"$f":"'TNFD Score Overview'!G15","v":48.199999999999996},{"$f":"'TNFD Score Overview'!H15","v":49.136000000000003},{"$f":"'TNFD Score Overview'!I15","v":47.434999999999995}]
[null,null,null,null,null,null,null,null,"Comparator Average",{"$f":"'TNFD Score Overview'!B10","v":56.774562500000002},{"$f":"'TNFD Score Overview'!C10","v":56.854843750000008},{"$f":"'TNFD Score Overview'!D10","v":56.593937499999996},{"$f":"'TNFD Score Overview'!E10","v":57.184250000000013},{"$f":"'TNFD Score Overview'!F10","v":56.784374999999997},{"$f":"'TNFD Score Overview'!G10","v":57.174749999999996},{"$f":"'TNFD Score Overview'!H10","v":56.228718749999992},{"$f":"'TNFD Score Overview'!I10","v":57.296687500000004}]
[null,null,null,null,null,null,null,null,"Materiality Test",{"$f":"IF(J10<J11*J7,\"Below\",\"Pass\")","v":"Below"},{"$f":"IF(K10<K11*J7,\"Below\",\"Pass\")","v":"Pass"},{"$f":"IF(L10<L11*J7,\"Below\",\"Pass\")","v":"Pass"},{"$f":"IF(M10<M11*J7,\"Below\",\"Pass\")","v":"Below"},{"$f":"IF(N10<N11*J7,\"Below\",\"Pass\")","v":"Pass"},{"$f":"IF(O10<O11*J7,\"Below\",\"Pass\")","v":"Below"},{"$f":"IF(P10<P11*J7,\"Below\",\"Pass\")","v":"Pass"},{"$f":"IF(Q10<Q11*J7,\"Below\",\"Pass\")","v":"Below"}]
[]
["15 Areas of Focus Have Been Mapped to ESG Topics"]
["The TNFD framework groups its disclosure recommendations into 15 topics, aligned with the four TCFD pillars (Governance, Strategy, Risk & Impact Management, Metrics & Targets). We have mapped the 15 TNFD topics to the 12 sustainability-related topics that CSRHub rates. The mapping for is shown on the TNFD Mapping tab.",null,null,null,null,null,null,null,"Company Name",{"$f":"'TNFD Score Overview'!J14","v":"Water withdrawal and consumption\nfrom areas of water scarcity"},{"$f":"'TNFD Score Overview'!K14","v":"Quantity of high-risk natural commodities sourced from land/ocean/ freshwater"},{"$f":"'TNFD Score Overview'!L14","v":"Measures against unintentional introduction of invasive alien species (IAS)."},{"$f":"'TNFD Score Overview'!M14","v":"Ecosystem condition"},{"$f":"'TNFD Score Overview'!N14","v":"Species extinction risk"},{"$f":"'TNFD Score Overview'!O14","v":"Risk"},{"$f":"'TNFD Score Overview'!P14","v":"Opportunity"}]
[null,null,null,null,null,null,null,null,{"$f":"'CSRHub Ratings'!B15","v":"American Well Corp"},{"$f":"'TNFD Score Overview'!J15","v":50.979500000000002},{"$f":"'TNFD Score Overview'!K15","v":48.630499999999998},{"$f":"'TNFD Score Overview'!L15","v":47.282000000000011},{"$f":"'TNFD Score Overview'!M15","v":47.45450000000001},{"$f":"'TNFD Score Overview'!N15","v":48.315500000000007},{"$f":"'TNFD Score Overview'!O15","v":49.790000000000006},{"$f":"'TNFD Score Overview'!P15","v":49.790000000000006}]
[null,null,null,null,null,null,null,null,"Comparator Average",{"$f":"'TNFD Score Overview'!J10","v":55.752781250000005},{"$f":"'TNFD Score Overview'!K10","v":56.671062499999998},{"$f":"'TNFD Score Overview'!L10","v":56.759812499999995},{"$f":"'TNFD Score Overview'!M10","v":56.769312499999991},{"$f":"'TNFD Score Overview'!N10","v":56.388437499999988},{"$f":"'TNFD Score Overview'!O10","v":56.197500000000012},{"$f":"'TNFD Score Overview'!P10","v":56.197500000000012}]
[null,null,null,null,null,null,null,null,"Materiality Test",{"$f":"IF(J16<J17*J7,\"Below\",\"Pass\")","v":"Pass"},{"$f":"IF(K16<K17*J7,\"Below\",\"Pass\")","v":"Pass"},{"$f":"IF(L16<L17*J7,\"Below\",\"Pass\")","v":"Below"},{"$f":"IF(M16<M17*J7,\"Below\",\"Pass\")","v":"Below"},{"$f":"IF(N16<N17*J7,\"Below\",\"Pass\")","v":"Pass"},{"$f":"IF(O16<O17*J7,\"Below\",\"Pass\")","v":"Pass"},{"$f":"IF(P16<P17*J7,\"Below\",\"Pass\")","v":"Pass"}]
[]
["The Enter Company Names Tab"]
["This tab is the starting point. It allows you search the names of the companies you wish to evaluate. Please enter in the date of data you are wanting to evaluate. You can verify the company name in column J. The instructions for matching the correct entity can be found in cells A4-A10."]
[]
[]
[]
[]
["The TNFD Score Overview Tab"]
["This tab contains an estimate of the relative performance for the studied companies across the 15 TNFD topics areas. The \"focus company\" is the top and the \"comparators\" are below it. The comparators average, best, and worst ratings are listed at the top of the sheet. The focus company is excluded. "]
[]
[]
["The CSRHub Ratings Tab"]
["Confirm the date is correct and that it pulled from the Enter Company Names tab when you click \"Calculate.\" The \"focus company\" is the top and the \"comparators\" are below it. The comparators average, best and worst ratings are listed at the top of the sheet. The focus company is excluded"]
[]
[null,null,null,". "]
["Set Your Threshold for Materiality and Use the Tool"]
["To the right at the top of this page is the cell to \"Customize your TNFD Materiality Level\" for this tool. If you want to test if the focus company is in line with the average for its comparators, set the threshold at 100%. If you would accept the focus company being a certain percentage below the average for TNFD topics, set the threshold at the desired percentage and click Calculate. To the right of these instructions, you will see a group of comparisons between the focus company and the average of the comparators. When the focus company fails to meet the threshold you set, you will see a flag that says \"Below.\" When it meets the threshold, the flag will say \"Pass.\""]
[]
[]
[]
[]
[]
[]
[]
[]
["What to Do, Next?"]
["When the focus company appears likely to fail the materiality test for a particular SASB area, it should consider taking steps to rectify this issue.\nThese steps could include:"]
[]
[]
["1. Improve policies and practices in the area of concern.\n"]
["2. Gather more data to allow better understanding of performance in this area."]
["3. Improve reporting to raings groups and share relevant indicators."]
[]
[]
["CSRHub's ratings are based on the views of hundreds of ratings groups. These groups typically rely on both formal and informal reporting from the entities they cover plus their own internal analysis techniques and models. If necessary, CSRHub can supply additional reports and tools to help improve reporting and strength an entity's engagement with rating sources."]
[]
[]
[]
[]
[]
["For more information on CSRHub’s methodology, please see www.csrhub.com/csrhub-esg-ratings-methodology."]

{"sheet":"Enter Company Names","index":1,"n_rows":44,"n_cols":24,"rows_kept":44,"cut":false,"hidden":false,"merged":[[0,17,0,23],[2,17,4,18],[5,17,5,23],[12,0,12,1],[12,10,12,15],[2,13,3,15]]}
[null,null,null,null,null,null,null,null,null,null,null,null,null,null,null,null,null,"Controls for Fine Tuning Scope of Search"]
[null,null,null,null,null,null,null,null,null,null,null,null,null,null,null,null,null,null,null,null,"Name","Ticker","URL","ISIN"]
["Enter The Company Or Companies You Want To Study",null,null,null,null,null,null,null,null,null,null,null,null,"NA = Rating or information not available. This can also be due to a company with only partial ratings. We do not provide an overall score for partially rated companies.",null,null,null,"Set to include (I) or exclude (X) fully rated, partially rated and/or unrated companies from your search",null,"Fully Rated","I","I","I","I"]
["1. Enter a company name, part of a company name, or a brand in column B, a ticker into column C, a web URL into column D, and/or an ISIN number into column E.",null,null,null,null,null,null,null,null,null,null,null,null,null,null,null,null,null,null,"Partially Rated","I","I","I","I"]
["2. If the CSRHub name you want does not appear in column J, use the CSRHub name lookup tool (top menu, CSRHub…Company) to paste the right text company name into column J.",null,null,null,null,null,null,null,null,null,null,null,null,null,null,null,null,null,null,"Not Rated","I","I","I","I"]
["3. The data in columns K to Q should help you double check that you have the right name match. The name in column J is the one used automatically on other sheets.",null,null,null,null,null,null,null,null,null,null,null,null,null,"Version:",{"$f":"CSRHubAPIVersionNumber()","v":"3.3"},null,"Changes in the settings above will change the search parameter in cells F13-I13"]
["4. If you need to lookup more than 30 companies, you can copy the formulas in row 44 down as far as you wish.",null,null,null,null,null,null,null,null,null,null,null,null,null,"Last Content Update:","2026-03-26"]
["5. Use column A to store your internal identifier or version of the company name for later reference. You can change the scope of search using the box starting in column R.",null,null,null,null,null,null,null,null,null,null,null,null,null,"Last Code Update:",{"$f":"CSRHubAPIVersionDate()","v":"2025-12-25"},null,null,"Month","Year"]
["6. Request a specific Month and Year of data, in cells S9 and T9.  Choose Formulas from the top menu, then Calculate Sheet. This will allow our database to update the sheet.",null,null,null,null,null,null,null,null,null,null,null,null,null,"Includes MonetDB Mac Update",null,null,"Data Date","February",2026]
["7. Enter your CSRHub site credentials (username/password) when directed."]
[]
[]
["Top Line Summary",null,{"$f":"COUNT(N15:N215) & \" Companies\"","v":"17 Companies"},null,"Search scope parameters (see Column P)",{"$f":"IF(AND(U3=\"I\",U4=\"I\",U5=\"I\"),\"0\",IF(AND(U3=\"I\",U4=\"X\",U5=\"X\"),\"1\",IF(AND(U3=\"I\",U4=\"I\",U5=\"X\"),\"2\",IF(AND(U3=\"X\",U4=\"I\",U5=\"X\"),\"3\",IF(AND(U3=\"X\",U4=\"X\",U5=\"I\"),\"4\",IF(AND(U3=\"X\",U4=\"I\",U5=\"I\"),\"5\",IF(AND(U3=\"I\",U4=\"X\",U5=\"I\"),\"6\",\"0\")))))))","v":"0"},{"$f":"IF(AND(V3=\"I\",V4=\"I\",V5=\"I\"),\"0\",IF(AND(V3=\"I\",V4=\"X\",V5=\"X\"),\"1\",IF(AND(V3=\"I\",V4=\"I\",V5=\"X\"),\"2\",IF(AND(V3=\"X\",V4=\"I\",V5=\"X\"),\"3\",IF(AND(V3=\"X\",V4=\"X\",V5=\"I\"),\"4\",IF(AND(V3=\"X\",V4=\"I\",V5=\"I\"),\"5\",IF(AND(V3=\"I\",V4=\"X\",V5=\"I\"),\"6\",\"0\")))))))","v":"0"},"0","0","More instructions and examples are available online.","Ways to Double Check the Name"]
["Internal ID (Optional)","Enter Name","Enter Ticker (No exchange code)","Enter web URL","Enter ISIN","Simple Lookup (NA or blank = didn't work)","Ticker Lookup (NA or blank = didn't work)","URL Lookup (NA or blank = didn't work)","ISIN Lookup (NA or blank = didn't work)","Best Guess (replace using name lookup tool when NA)","Country","City","Ticker","# of Sources","ISIN","Industry","Overall Ratings"]
[null,"American Well Corp",null,null,null,{"$f":"csrhubfindcompanyname($B15,0,F$13)","v":"American Well Corp"},{"$f":"csrhubfindcompanyname($C15,3,G$13)","v":"NA"},{"$f":"csrhubfindcompanyname($D15,5,H$13)","v":"NA"},{"$f":"csrhubfindcompanyname($E15,4,I$13)","v":"NA"},{"$f":"IF(I15=\"NA\",IF(H15=\"NA\",IF(F15=\"NA\",IF(G15= \"NA\",\"NA\",G15),F15),H15),I15)","v":"American Well Corp"},{"$f":"csrhubcompanycountry(J15)","v":"USA"},{"$f":"CSRHubCompanycity(J15)","v":"Boston"},{"$f":"CSRHubCompanyTicker(J15)","v":"AMWL"},{"$f":"CSRHubDScount(J15)","v":19},{"$f":"csrhubcompanyisin(J15)","v":"US03044L1052"},{"$f":"CSRHubCompanyIndustry(J15)","v":"Healthcare Providers"},{"$f":"CSRHubRating(J15)","v":50.110900000000001}]
[null,"Pernod Ricard",null,null,null,{"$f":"csrhubfindcompanyname($B16,0,F$13)","v":"Pernod Ricard"},"NA","NA","NA","Pernod Ricard",{"$f":"csrhubcompanycountry(J16)","v":"France"},{"$f":"CSRHubCompanycity(J16)","v":"Paris"},{"$f":"CSRHubCompanyTicker(J16)","v":"RI"},{"$f":"CSRHubDScount(J16)","v":46},{"$f":"csrhubcompanyisin(J16)","v":"FR0000120693"},{"$f":"CSRHubCompanyIndustry(J16)","v":"Beer, Wine, & Distilled Alcoholic Bev. Wholesalers"},{"$f":"CSRHubRating(J16)","v":64.1691}]
[null,"FILA Fabbrica Italiana Lapis d Affni SpA",null,null,null,{"$f":"csrhubfindcompanyname($B17,0,F$13)","v":"FILA Fabbrica Italiana Lapis d Affni SpA"},"NA","NA","NA","FILA Fabbrica Italiana Lapis d Affni SpA",{"$f":"csrhubcompanycountry(J17)","v":"Italy"},"Milan","FILA",21,"IT0004967292","Paper Products",55.693100000000001]
[null,"Coty Inc.",null,null,null,"Coty Inc.","NA","NA","NA","Coty Inc.","USA","New York City","COTY",42,"US2220702037","Luxury Goods & Cosmetics Manufacturing",58.009500000000003]
[null,"Barnes & Noble, Inc.",null,null,null,"Barnes & Noble, Inc.","NA","NA","NA","Barnes & Noble, Inc.","USA","New York City","BKS",7,"US0677741094","Wholesale Trade",49.447099999999999]
[null,"3M Company",null,null,null,"3M Company","NA","NA","NA","3M Company","USA","Saint Paul","MMM",80,"US88579Y1010","Manufacturing",57.927700000000002]
[null,"Newell Rubbermaid Inc.",null,null,null,"Newell Rubbermaid Inc.","NA",{"$f":"csrhubfindcompanyname($D21,5,H$13)","v":"NA"},"NA",{"$f":"IF(I21=\"NA\",IF(H21=\"NA\",IF(F21=\"NA\",IF(G21= \"NA\",\"NA\",G21),F21),H21),I21)","v":"Newell Rubbermaid Inc."},"USA","Atlanta","NWL",36,"US6512291062","Household Products",54.369199999999999]
[null,"Procter & Gamble Company",null,null,null,"Procter & Gamble Company","NA","NA","NA",{"$f":"IF(I22=\"NA\",IF(F22=\"NA\",IF(G22= \"NA\",\"NA\",G22),F22),I22)","v":"Procter & Gamble Company"},"USA","Cincinnati","PG",95,"US7427181091","Manufacturing",61.5137]
[null,"Unilever PLC",null,null,null,"Unilever PLC","NA","NA","NA","Unilever PLC","United Kingdom","London","ULVR",93,"GB00B10RZP78","Household Products",64.932100000000005]
[null,"Church & Dwight Co., Inc.",null,null,null,"Church & Dwight Co., Inc.","NA","NA","NA","Church & Dwight Co., Inc.","USA","Princeton","CHD",49,"US1713401024","Chemicals, Plastics & Rubber Products Mfg.",57.4026]
[null,"Edgewell Personal Care Company",null,null,null,"Edgewell Personal Care Company","NA","NA","NA","Edgewell Personal Care Company","USA","St. Louis","EPC",30,"US28035Q1022","Luxury Goods & Cosmetics Manufacturing",56.396299999999997]
[null,"BIC",null,null,null,"BIC","NA","NA","NA","BIC","France","Clichy","BB",29,"FR0000120966","Manufacturing",64.057599999999994]
[null,"Johnson & Johnson",null,null,null,"Johnson & Johnson","NA","NA","NA","Johnson & Johnson","USA","New Brunswick","JNJ",101,"US4781601046","Medical Equipment & Supplies Manufacturing",63.756399999999999]
[null,"Amazon.com, Inc.",null,null,null,"Amazon.com, Inc.","NA","NA","NA","Amazon.com, Inc.","USA","Seattle","AMZN",93,"US0231351067","Electronic Shopping and Mail-Order Houses",53.157899999999998]
[null,"Groupe Danone",null,null,null,"Groupe Danone","NA","NA","NA","Groupe Danone","France","Paris","BN",71,"FR0000120644","Food Products",63.964700000000001]
[null,"Walmart Inc.",null,null,null,"Walmart Inc.","NA","NA","NA","Walmart Inc.","USA","Bentonville","WMT",94,"US9311421039","Retail",57.724699999999999]
[null,"Carrefour",null,null,null,"Carrefour","NA","NA","NA","Carrefour","France","Levallois-Perret","CA",54,"FR0000120172","Supermarket, Food & Beverage Stores",61.086599999999997]
[null,null,null,null,null,"NA","NA","NA","NA","NA","","","","NA","","NA","NA"]
[null,null,null,null,null,"NA","NA","NA","NA","NA","","","","NA","","NA","NA"]
[null,null,null,null,null,"NA","NA","NA","NA","NA","","","","NA","","NA","NA"]
[null,null,null,null,null,"NA","NA","NA","NA","NA","","","","NA","","NA","NA"]
[null,null,null,null,null,"NA","NA","NA","NA","NA","","","","NA","","NA","NA"]
[null,null,null,null,null,"NA","NA","NA","NA","NA","","","","NA","","NA","NA"]
[null,null,null,null,null,"NA","NA","NA","NA","NA","","","","NA","","NA","NA"]
[null,null,null,null,null,"NA","NA","NA","NA","NA","","","","NA","","NA","NA"]
[null,null,null,null,null,"NA","NA","NA","NA","NA","","","","NA","","NA","NA"]
[null,null,null,null,null,"NA","NA","NA","NA","NA","","","","NA","","NA","NA"]
[null,null,null,null,null,"NA","NA","NA","NA","NA","","","","NA","","NA","NA"]
[null,null,null,null,null,"NA","NA","NA","NA","NA","","","","NA","","NA","NA"]
[null,null,null,null,null,"NA","NA","NA","NA","NA","","","","NA","","NA","NA"]

{"sheet":"CSRHub Ratings","index":2,"n_rows":31,"n_cols":14,"rows_kept":31,"cut":false,"hidden":false,"merged":[[12,0,12,1],[8,2,8,4],[8,5,8,7],[8,8,8,10],[8,11,8,13],[9,0,11,0]]}
[]
[]
[]
["Subcategory Ratings (0-100, 100 = best)"]
["Instructions for CSRHub TNFD Calculator (Continued)"]
["1. The company names will pull from the Enter Company Names tab. Verify date is correct when you click Calculate."]
["2. Clear out any old ratings numbers (cell C15-N15 and down). When prompted, click \"No\" to not delete query."]
["3. Go to the CSRHub menu (in the green bar up top) and click on the \"Rebuild Data on This Sheet\" button. Your sheet will refresh. Then click Calculate."]
[null,null,"Community",null,null,"Employees",null,null,"Environment",null,null,"Governance"]
[null,"Average Rating",{"$f":"AVERAGEIF(C16:C215,\"<>NA\")","v":55.620000000000005},58.618749999999999,55.144999999999996,53.078125,53.872499999999995,53.453749999999999,57.111249999999998,58.521250000000002,57.301874999999995,55.929375,54.712499999999999,54.522499999999994]
[null,"Best Rating",{"$f":"MAX(C16:C215)","v":61.78},65.849999999999994,63.59,59.39,62.67,61.17,63.64,68.44,65.930000000000007,60.84,60.01,59.44]
[null,"Worst Rating",{"$f":"MIN(C16:C215)","v":48.03},42.21,42.2,39.880000000000003,40.94,36.99,39.54,40.46,40.89,40.6,40.94,38.590000000000003]
["<==DATA PULLS FROM FIRST TAB==>"]
["Internal ID","COMPANY NAME ",{"$f":"\"Community Dev & Philanthropy Rating (\" & 'Enter Company Names'!$S$9 & \" \" & 'Enter Company Names'!$T$9 & \")\"","v":"Community Dev & Philanthropy Rating (February 2026)"},{"$f":"\"Human Rights & Supply Chain Rating (\" & 'Enter Company Names'!$S$9 & \" \" & 'Enter Company Names'!$T$9 & \")\"","v":"Human Rights & Supply Chain Rating (February 2026)"},{"$f":"\"Product Rating (\" & 'Enter Company Names'!$S$9 & \" \" & 'Enter Company Names'!$T$9 & \")\"","v":"Product Rating (February 2026)"},{"$f":"\"Compensation & Benefits Rating (\" & 'Enter Company Names'!$S$9 & \" \" & 'Enter Company Names'!$T$9 & \")\"","v":"Compensation & Benefits Rating (February 2026)"},{"$f":"\"Diversity & Labor Rights Rating (\" & 'Enter Company Names'!$S$9 & \" \" & 'Enter Company Names'!$T$9 & \")\"","v":"Diversity & Labor Rights Rating (February 2026)"},{"$f":"\"Training, Health & Safety Rating (\" & 'Enter Company Names'!$S$9 & \" \" & 'Enter Company Names'!$T$9 & \")\"","v":"Training, Health & Safety Rating (February 2026)"},{"$f":"\"Energy & Climate Change Rating (\" & 'Enter Company Names'!$S$9 & \" \" & 'Enter Company Names'!$T$9 & \")\"","v":"Energy & Climate Change Rating (February 2026)"},{"$f":"\"Environment Policy & Reporting Rating (\" & 'Enter Company Names'!$S$9 & \" \" & 'Enter Company Names'!$T$9 & \")\"","v":"Environment Policy & Reporting Rating (February 2026)"},{"$f":"\"Resource Management Rating (\" & 'Enter Company Names'!$S$9 & \" \" & 'Enter Company Names'!$T$9 & \")\"","v":"Resource Management Rating (February 2026)"},{"$f":"\"Board Rating (\" & 'Enter Company Names'!$S$9 & \" \" & 'Enter Company Names'!$T$9 & \")\"","v":"Board Rating (February 2026)"},{"$f":"\"Leadership Ethics Rating (\" & 'Enter Company Names'!$S$9 & \" \" & 'Enter Company Names'!$T$9 & \")\"","v":"Leadership Ethics Rating (February 2026)"},{"$f":"\"Transparency & Reporting Rating (\" & 'Enter Company Names'!$S$9 & \" \" & 'Enter Company Names'!$T$9 & \")\"","v":"Transparency & Reporting Rating (February 2026)"}]
[null,{"$f":"'Enter Company Names'!J15","v":"American Well Corp"},49.37,52.78,50.43,43.31,42.47,45.19,40.909999999999997,44.27,51.92,50.45,52.88,49.43]
[null,{"$f":"'Enter Company Names'!J16","v":"Pernod Ricard"},60.06,65.27,63.59,54.32,59.16,56.62,59.98,65.23,65.53,53.92,53.96,52.09]
[null,{"$f":"'Enter Company Names'!J17","v":"FILA Fabbrica Italiana Lapis d Affni SpA"},50.65,56.88,56.32,46,48.57,49.03,50.45,55.49,53.35,55.31,54.98,55.43]
[null,{"$f":"'Enter Company Names'!J18","v":"Coty Inc."},55.3,59.82,57.8,50.86,54.1,54.56,62.23,63.69,59.75,55.91,59.08,54.73]
[null,{"$f":"'Enter Company Names'!J19","v":"Barnes & Noble, Inc."},48.03,42.21,42.2,39.880000000000003,40.94,36.99,39.54,40.46,40.89,40.6,40.94,38.590000000000003]
[null,{"$f":"'Enter Company Names'!J20","v":"3M Company"},55.65,60.42,44.98,54.86,54.33,50.76,59.73,54.94,47.94,60.04,55.33,58.39]
[null,{"$f":"'Enter Company Names'!J21","v":"Newell Rubbermaid Inc."},50.68,56.19,52.41,48.75,49.22,49.29,52.11,50.33,49.18,59.05,56.74,54.53]
[null,{"$f":"'Enter Company Names'!J22","v":"Procter & Gamble Company"},57.06,58.38,56.38,58.86,58.3,56.62,60.08,63.78,62.96,59.27,56.45,57.75]
[null,{"$f":"'Enter Company Names'!J23","v":"Unilever PLC"},58.49,61.64,61.54,58.02,57.61,61.17,63.64,64.66,63.94,59.58,55.15,57.58]
[null,{"$f":"'Enter Company Names'!J24","v":"Church & Dwight Co., Inc."},53.56,58.55,59.23,48.18,48.37,51.46,57.45,62.92,63.98,49.96,54.36,52.99]
[null,{"$f":"'Enter Company Names'!J25","v":"Edgewell Personal Care Company"},52.51,56.26,52.48,50.4,49.15,54.54,55.96,56.72,54.74,56.03,54.35,53.42]
[null,{"$f":"'Enter Company Names'!J26","v":"BIC"},59.86,60.68,56.31,57.87,61.34,61.03,57.83,59.51,53.85,55.35,58.2,55.65]
[null,{"$f":"'Enter Company Names'!J27","v":"Johnson & Johnson"},61.78,64.08,55.89,58.19,58.53,58.94,62.61,62.88,62.99,60.84,56.35,58.88]
[null,{"$f":"'Enter Company Names'!J28","v":"Amazon.com, Inc."},52.4,51.6,49.25,51.4,49.2,48.86,52.68,50.19,48.78,55.19,50.65,53.37]
[null,{"$f":"'Enter Company Names'!J29","v":"Groupe Danone"},61.6,65.849999999999994,59.68,59.39,62.67,58.68,63.54,68.44,65.930000000000007,60.69,60.01,59.44]
[null,{"$f":"'Enter Company Names'!J30","v":"Walmart Inc."},53.46,56.77,54.5,52.97,49.92,50.27,57.64,55.13,59.92,56.54,52.63,55.02]
[null,{"$f":"'Enter Company Names'!J31","v":"Carrefour"},58.83,63.3,59.76,59.3,60.55,56.44,58.31,61.97,63.1,56.59,56.22,54.5]

{"sheet":"TNFD Score Overview","index":3,"n_rows":31,"n_cols":16,"rows_kept":31,"cut":false,"hidden":false,"merged":[[0,0,2,0],[0,5,2,6],[12,0,12,35]]}
[]
[]
[]
["Instructions for TNFD Calculator (Continued)"]
["1. The company names will pull from Enter Company Names sheet."]
["2. Click \"Calculate\" to update CSRHub scores applied to TNFD topics."]
[]
[]
[{"$f":"\"For \"&A15&\"\"","v":"For American Well Corp"},"GHG emissions","Total spatial footprint","Extent of land/ freshwater/ ocean-use\nchange","Pollutants released to soil split by type\n","Wastewater discharged","Waste generation and disposal\n","Plastic pollution","Non-GHG air pollutants","Water withdrawal and consumption\nfrom areas of water scarcity","Quantity of high-risk natural commodities sourced from land/ocean/ freshwater","Measures against unintentional introduction of invasive alien species (IAS).","Ecosystem condition","Species extinction risk","Risk","Opportunity"]
["Average Rating",{"$f":"AVERAGEIF(B16:B217,\"<>0\")","v":56.774562500000002},{"$f":"AVERAGEIF(C16:C217,\"<>0\")","v":56.854843750000008},56.593937499999996,57.184250000000013,56.784374999999997,57.174749999999996,56.228718749999992,57.296687500000004,55.752781250000005,56.671062499999998,56.759812499999995,56.769312499999991,56.388437499999988,56.197500000000012,56.197500000000012]
["Best Rating",{"$f":"MAX(B16:B217)","v":63.580500000000008},{"$f":"MAX(C16:C217)","v":64.776500000000013},64.201000000000008,65.522499999999994,64.622500000000002,65.494,62.800000000000004,65.745000000000005,62.2575,64.297499999999999,64.504000000000005,64.532499999999999,63.689499999999995,62.902000000000001,62.902000000000001]
["Worst Rating",{"$f":"MIN(B16:B217)","v":39.838999999999999},{"$f":"MIN(C16:C217)","v":40.383000000000003},40.311000000000007,40.474000000000004,40.286999999999999,40.356499999999997,41.144500000000001,40.313500000000005,41.753,41.472999999999999,40.088500000000003,40.206000000000003,40.254000000000005,40.296000000000006,40.296000000000006]
[]
["Company Name","GHG emissions","Total spatial footprint","Extent of land/ freshwater/ ocean-use\nchange","Pollutants released to soil split by type\n","Wastewater discharged","Waste generation and disposal\n","Plastic pollution","Non-GHG air pollutants","Water withdrawal and consumption\nfrom areas of water scarcity","Quantity of high-risk natural commodities sourced from land/ocean/ freshwater","Measures against unintentional introduction of invasive alien species (IAS).","Ecosystem condition","Species extinction risk","Risk","Opportunity"]
[{"$f":"'Enter Company Names'!J15","v":"American Well Corp"},{"$f":"SUMPRODUCT('CSRHub Ratings'!C15:N15,'TNFD Mapping'!$C$15:$N$15)","v":44.229500000000002},{"$f":"SUMPRODUCT('CSRHub Ratings'!$C15:$N15,'TNFD Mapping'!$C$16:$N$16)","v":48.6785},{"$f":"SUMPRODUCT('CSRHub Ratings'!$C15:$N15,'TNFD Mapping'!$C$17:$N$17)","v":49.319000000000003},{"$f":"SUMPRODUCT('CSRHub Ratings'!$C15:$N15,'TNFD Mapping'!$C$18:$N$18)","v":48.372500000000002},{"$f":"SUMPRODUCT('CSRHub Ratings'!$C15:$N15,'TNFD Mapping'!$C$19:$N$19)","v":48.888500000000008},{"$f":"SUMPRODUCT('CSRHub Ratings'!$C15:$N15,'TNFD Mapping'!$C$20:$N$20)","v":48.199999999999996},{"$f":"SUMPRODUCT('CSRHub Ratings'!$C15:$N15,'TNFD Mapping'!$C$21:$N$21)","v":49.136000000000003},{"$f":"SUMPRODUCT('CSRHub Ratings'!$C15:$N15,'TNFD Mapping'!$C$22:$N$22)","v":47.434999999999995},{"$f":"SUMPRODUCT('CSRHub Ratings'!$C15:$N15,'TNFD Mapping'!$C$23:$N$23)","v":50.979500000000002},{"$f":"SUMPRODUCT('CSRHub Ratings'!$C15:$N15,'TNFD Mapping'!$C$24:$N$24)","v":48.630499999999998},{"$f":"SUMPRODUCT('CSRHub Ratings'!$C15:$N15,'TNFD Mapping'!$C$25:$N$25)","v":47.282000000000011},{"$f":"SUMPRODUCT('CSRHub Ratings'!$C15:$N15,'TNFD Mapping'!$C$26:$N$26)","v":47.45450000000001},{"$f":"SUMPRODUCT('CSRHub Ratings'!$C15:$N15,'TNFD Mapping'!$C$27:$N$27)","v":48.315500000000007},{"$f":"SUMPRODUCT('CSRHub Ratings'!$C15:$N15,'TNFD Mapping'!$C$28:$N$28)","v":49.790000000000006},{"$f":"SUMPRODUCT('CSRHub Ratings'!$C15:$N15,'TNFD Mapping'!$C$29:$N$29)","v":49.790000000000006}]
[{"$f":"'Enter Company Names'!J16","v":"Pernod Ricard"},{"$f":"SUMPRODUCT('CSRHub Ratings'!C16:N16,'TNFD Mapping'!$C$15:$N$15)","v":59.338000000000008},{"$f":"SUMPRODUCT('CSRHub Ratings'!$C16:$N16,'TNFD Mapping'!$C$16:$N$16)","v":61.080000000000005},{"$f":"SUMPRODUCT('CSRHub Ratings'!$C16:$N16,'TNFD Mapping'!$C$17:$N$17)","v":60.437999999999995},{"$f":"SUMPRODUCT('CSRHub Ratings'!$C16:$N16,'TNFD Mapping'!$C$18:$N$18)","v":62.315500000000007},{"$f":"SUMPRODUCT('CSRHub Ratings'!$C16:$N16,'TNFD Mapping'!$C$19:$N$19)","v":61.0015},{"$f":"SUMPRODUCT('CSRHub Ratings'!$C16:$N16,'TNFD Mapping'!$C$20:$N$20)","v":62.222000000000001},{"$f":"SUMPRODUCT('CSRHub Ratings'!$C16:$N16,'TNFD Mapping'!$C$21:$N$21)","v":62.659500000000001},{"$f":"SUMPRODUCT('CSRHub Ratings'!$C16:$N16,'TNFD Mapping'!$C$22:$N$22)","v":62.192000000000007},{"$f":"SUMPRODUCT('CSRHub Ratings'!$C16:$N16,'TNFD Mapping'!$C$23:$N$23)","v":58.762},{"$f":"SUMPRODUCT('CSRHub Ratings'!$C16:$N16,'TNFD Mapping'!$C$24:$N$24)","v":60.853000000000002},{"$f":"SUMPRODUCT('CSRHub Ratings'!$C16:$N16,'TNFD Mapping'!$C$25:$N$25)","v":59.69100000000001},{"$f":"SUMPRODUCT('CSRHub Ratings'!$C16:$N16,'TNFD Mapping'!$C$26:$N$26)","v":59.784500000000008},{"$f":"SUMPRODUCT('CSRHub Ratings'!$C16:$N16,'TNFD Mapping'!$C$27:$N$27)","v":58.657500000000006},{"$f":"SUMPRODUCT('CSRHub Ratings'!$C16:$N16,'TNFD Mapping'!$C$28:$N$28)","v":58.146000000000001},{"$f":"SUMPRODUCT('CSRHub Ratings'!$C16:$N16,'TNFD Mapping'!$C$29:$N$29)","v":58.146000000000001}]
[{"$f":"'Enter Company Names'!J17","v":"FILA Fabbrica Italiana Lapis d Affni SpA"},{"$f":"SUMPRODUCT('CSRHub Ratings'!C17:N17,'TNFD Mapping'!$C$15:$N$15)","v":52.6355},{"$f":"SUMPRODUCT('CSRHub Ratings'!$C17:$N17,'TNFD Mapping'!$C$16:$N$16)","v":54.844000000000008},{"$f":"SUMPRODUCT('CSRHub Ratings'!$C17:$N17,'TNFD Mapping'!$C$17:$N$17)","v":54.734000000000002},{"$f":"SUMPRODUCT('CSRHub Ratings'!$C17:$N17,'TNFD Mapping'!$C$18:$N$18)","v":54.765499999999996},{"$f":"SUMPRODUCT('CSRHub Ratings'!$C17:$N17,'TNFD Mapping'!$C$19:$N$19)","v":54.759499999999996},{"$f":"SUMPRODUCT('CSRHub Ratings'!$C17:$N17,'TNFD Mapping'!$C$20:$N$20)","v":54.787999999999997},{"$f":"SUMPRODUCT('CSRHub Ratings'!$C17:$N17,'TNFD Mapping'!$C$21:$N$21)","v":55.511000000000003},{"$f":"SUMPRODUCT('CSRHub Ratings'!$C17:$N17,'TNFD Mapping'!$C$22:$N$22)","v":55.00200000000001},{"$f":"SUMPRODUCT('CSRHub Ratings'!$C17:$N17,'TNFD Mapping'!$C$23:$N$23)","v":53.656000000000006},{"$f":"SUMPRODUCT('CSRHub Ratings'!$C17:$N17,'TNFD Mapping'!$C$24:$N$24)","v":54.250500000000002},{"$f":"SUMPRODUCT('CSRHub Ratings'!$C17:$N17,'TNFD Mapping'!$C$25:$N$25)","v":55.373000000000005},{"$f":"SUMPRODUCT('CSRHub Ratings'!$C17:$N17,'TNFD Mapping'!$C$26:$N$26)","v":55.350500000000004},{"$f":"SUMPRODUCT('CSRHub Ratings'!$C17:$N17,'TNFD Mapping'!$C$27:$N$27)","v":55.299499999999995},{"$f":"SUMPRODUCT('CSRHub Ratings'!$C17:$N17,'TNFD Mapping'!$C$28:$N$28)","v":54.911999999999999},{"$f":"SUMPRODUCT('CSRHub Ratings'!$C17:$N17,'TNFD Mapping'!$C$29:$N$29)","v":54.911999999999999}]
[{"$f":"'Enter Company Names'!J18","v":"Coty Inc."},{"$f":"SUMPRODUCT('CSRHub Ratings'!C18:N18,'TNFD Mapping'!$C$15:$N$15)","v":61.299500000000002},{"$f":"SUMPRODUCT('CSRHub Ratings'!$C18:$N18,'TNFD Mapping'!$C$16:$N$16)","v":60.439},{"$f":"SUMPRODUCT('CSRHub Ratings'!$C18:$N18,'TNFD Mapping'!$C$17:$N$17)","v":59.793999999999997},{"$f":"SUMPRODUCT('CSRHub Ratings'!$C18:$N18,'TNFD Mapping'!$C$18:$N$18)","v":60.920499999999997},{"$f":"SUMPRODUCT('CSRHub Ratings'!$C18:$N18,'TNFD Mapping'!$C$19:$N$19)","v":60.024499999999996},{"$f":"SUMPRODUCT('CSRHub Ratings'!$C18:$N18,'TNFD Mapping'!$C$20:$N$20)","v":60.702999999999996},{"$f":"SUMPRODUCT('CSRHub Ratings'!$C18:$N18,'TNFD Mapping'!$C$21:$N$21)","v":59.321999999999996},{"$f":"SUMPRODUCT('CSRHub Ratings'!$C18:$N18,'TNFD Mapping'!$C$22:$N$22)","v":61.097000000000001},{"$f":"SUMPRODUCT('CSRHub Ratings'!$C18:$N18,'TNFD Mapping'!$C$23:$N$23)","v":57.470999999999997},{"$f":"SUMPRODUCT('CSRHub Ratings'!$C18:$N18,'TNFD Mapping'!$C$24:$N$24)","v":59.608000000000004},{"$f":"SUMPRODUCT('CSRHub Ratings'!$C18:$N18,'TNFD Mapping'!$C$25:$N$25)","v":60.527999999999999},{"$f":"SUMPRODUCT('CSRHub Ratings'!$C18:$N18,'TNFD Mapping'!$C$26:$N$26)","v":60.745499999999993},{"$f":"SUMPRODUCT('CSRHub Ratings'!$C18:$N18,'TNFD Mapping'!$C$27:$N$27)","v":60.284499999999994},{"$f":"SUMPRODUCT('CSRHub Ratings'!$C18:$N18,'TNFD Mapping'!$C$28:$N$28)","v":58.632000000000005},{"$f":"SUMPRODUCT('CSRHub Ratings'!$C18:$N18,'TNFD Mapping'!$C$29:$N$29)","v":58.632000000000005}]
[{"$f":"'Enter Company Names'!J19","v":"Barnes & Noble, Inc."},{"$f":"SUMPRODUCT('CSRHub Ratings'!C19:N19,'TNFD Mapping'!$C$15:$N$15)","v":39.838999999999999},{"$f":"SUMPRODUCT('CSRHub Ratings'!$C19:$N19,'TNFD Mapping'!$C$16:$N$16)","v":40.383000000000003},{"$f":"SUMPRODUCT('CSRHub Ratings'!$C19:$N19,'TNFD Mapping'!$C$17:$N$17)","v":40.311000000000007},{"$f":"SUMPRODUCT('CSRHub Ratings'!$C19:$N19,'TNFD Mapping'!$C$18:$N$18)","v":40.474000000000004},{"$f":"SUMPRODUCT('CSRHub Ratings'!$C19:$N19,'TNFD Mapping'!$C$19:$N$19)","v":40.286999999999999},{"$f":"SUMPRODUCT('CSRHub Ratings'!$C19:$N19,'TNFD Mapping'!$C$20:$N$20)","v":40.356499999999997},{"$f":"SUMPRODUCT('CSRHub Ratings'!$C19:$N19,'TNFD Mapping'!$C$21:$N$21)","v":41.144500000000001},{"$f":"SUMPRODUCT('CSRHub Ratings'!$C19:$N19,'TNFD Mapping'!$C$22:$N$22)","v":40.313500000000005},{"$f":"SUMPRODUCT('CSRHub Ratings'!$C19:$N19,'TNFD Mapping'!$C$23:$N$23)","v":41.753},{"$f":"SUMPRODUCT('CSRHub Ratings'!$C19:$N19,'TNFD Mapping'!$C$24:$N$24)","v":41.472999999999999},{"$f":"SUMPRODUCT('CSRHub Ratings'!$C19:$N19,'TNFD Mapping'!$C$25:$N$25)","v":40.088500000000003},{"$f":"SUMPRODUCT('CSRHub Ratings'!$C19:$N19,'TNFD Mapping'!$C$26:$N$26)","v":40.206000000000003},{"$f":"SUMPRODUCT('CSRHub Ratings'!$C19:$N19,'TNFD Mapping'!$C$27:$N$27)","v":40.254000000000005},{"$f":"SUMPRODUCT('CSRHub Ratings'!$C19:$N19,'TNFD Mapping'!$C$28:$N$28)","v":40.296000000000006},{"$f":"SUMPRODUCT('CSRHub Ratings'!$C19:$N19,'TNFD Mapping'!$C$29:$N$29)","v":40.296000000000006}]
[{"$f":"'Enter Company Names'!J20","v":"3M Company"},{"$f":"SUMPRODUCT('CSRHub Ratings'!C20:N20,'TNFD Mapping'!$C$15:$N$15)","v":57.978000000000002},{"$f":"SUMPRODUCT('CSRHub Ratings'!$C20:$N20,'TNFD Mapping'!$C$16:$N$16)","v":53.785499999999999},{"$f":"SUMPRODUCT('CSRHub Ratings'!$C20:$N20,'TNFD Mapping'!$C$17:$N$17)","v":53.608000000000004},{"$f":"SUMPRODUCT('CSRHub Ratings'!$C20:$N20,'TNFD Mapping'!$C$18:$N$18)","v":53.243499999999997},{"$f":"SUMPRODUCT('CSRHub Ratings'!$C20:$N20,'TNFD Mapping'!$C$19:$N$19)","v":53.588499999999996},{"$f":"SUMPRODUCT('CSRHub Ratings'!$C20:$N20,'TNFD Mapping'!$C$20:$N$20)","v":53.396499999999996},{"$f":"SUMPRODUCT('CSRHub Ratings'!$C20:$N20,'TNFD Mapping'!$C$21:$N$21)","v":49.772500000000001},{"$f":"SUMPRODUCT('CSRHub Ratings'!$C20:$N20,'TNFD Mapping'!$C$22:$N$22)","v":54.096499999999999},{"$f":"SUMPRODUCT('CSRHub Ratings'!$C20:$N20,'TNFD Mapping'!$C$23:$N$23)","v":53.572500000000005},{"$f":"SUMPRODUCT('CSRHub Ratings'!$C20:$N20,'TNFD Mapping'!$C$24:$N$24)","v":54.222499999999997},{"$f":"SUMPRODUCT('CSRHub Ratings'!$C20:$N20,'TNFD Mapping'!$C$25:$N$25)","v":55.880499999999998},{"$f":"SUMPRODUCT('CSRHub Ratings'!$C20:$N20,'TNFD Mapping'!$C$26:$N$26)","v":55.727500000000006},{"$f":"SUMPRODUCT('CSRHub Ratings'!$C20:$N20,'TNFD Mapping'!$C$27:$N$27)","v":55.766499999999994},{"$f":"SUMPRODUCT('CSRHub Ratings'!$C20:$N20,'TNFD Mapping'!$C$28:$N$28)","v":55.328000000000003},{"$f":"SUMPRODUCT('CSRHub Ratings'!$C20:$N20,'TNFD Mapping'!$C$29:$N$29)","v":55.328000000000003}]
[{"$f":"'Enter Company Names'!J21","v":"Newell Rubbermaid Inc."},{"$f":"SUMPRODUCT('CSRHub Ratings'!C21:N21,'TNFD Mapping'!$C$15:$N$15)","v":52.6905},{"$f":"SUMPRODUCT('CSRHub Ratings'!$C21:$N21,'TNFD Mapping'!$C$16:$N$16)","v":51.954499999999996},{"$f":"SUMPRODUCT('CSRHub Ratings'!$C21:$N21,'TNFD Mapping'!$C$17:$N$17)","v":52.106999999999999},{"$f":"SUMPRODUCT('CSRHub Ratings'!$C21:$N21,'TNFD Mapping'!$C$18:$N$18)","v":51.366500000000002},{"$f":"SUMPRODUCT('CSRHub Ratings'!$C21:$N21,'TNFD Mapping'!$C$19:$N$19)","v":51.786499999999997},{"$f":"SUMPRODUCT('CSRHub Ratings'!$C21:$N21,'TNFD Mapping'!$C$20:$N$20)","v":51.255999999999993},{"$f":"SUMPRODUCT('CSRHub Ratings'!$C21:$N21,'TNFD Mapping'!$C$21:$N$21)","v":51.83400000000001},{"$f":"SUMPRODUCT('CSRHub Ratings'!$C21:$N21,'TNFD Mapping'!$C$22:$N$22)","v":51.370999999999995},{"$f":"SUMPRODUCT('CSRHub Ratings'!$C21:$N21,'TNFD Mapping'!$C$23:$N$23)","v":52.329499999999996},{"$f":"SUMPRODUCT('CSRHub Ratings'!$C21:$N21,'TNFD Mapping'!$C$24:$N$24)","v":51.743999999999993},{"$f":"SUMPRODUCT('CSRHub Ratings'!$C21:$N21,'TNFD Mapping'!$C$25:$N$25)","v":52.661999999999999},{"$f":"SUMPRODUCT('CSRHub Ratings'!$C21:$N21,'TNFD Mapping'!$C$26:$N$26)","v":52.772500000000001},{"$f":"SUMPRODUCT('CSRHub Ratings'!$C21:$N21,'TNFD Mapping'!$C$27:$N$27)","v":53.413499999999992},{"$f":"SUMPRODUCT('CSRHub Ratings'!$C21:$N21,'TNFD Mapping'!$C$28:$N$28)","v":53.966000000000001},{"$f":"SUMPRODUCT('CSRHub Ratings'!$C21:$N21,'TNFD Mapping'!$C$29:$N$29)","v":53.966000000000001}]
[{"$f":"'Enter Company Names'!J22","v":"Procter & Gamble Company"},{"$f":"SUMPRODUCT('CSRHub Ratings'!C22:N22,'TNFD Mapping'!$C$15:$N$15)","v":60.042500000000004},{"$f":"SUMPRODUCT('CSRHub Ratings'!$C22:$N22,'TNFD Mapping'!$C$16:$N$16)","v":61.204500000000003},{"$f":"SUMPRODUCT('CSRHub Ratings'!$C22:$N22,'TNFD Mapping'!$C$17:$N$17)","v":60.861999999999995},{"$f":"SUMPRODUCT('CSRHub Ratings'!$C22:$N22,'TNFD Mapping'!$C$18:$N$18)","v":61.831499999999998},{"$f":"SUMPRODUCT('CSRHub Ratings'!$C22:$N22,'TNFD Mapping'!$C$19:$N$19)","v":61.228499999999997},{"$f":"SUMPRODUCT('CSRHub Ratings'!$C22:$N22,'TNFD Mapping'!$C$20:$N$20)","v":61.896500000000003},{"$f":"SUMPRODUCT('CSRHub Ratings'!$C22:$N22,'TNFD Mapping'!$C$21:$N$21)","v":59.357500000000002},{"$f":"SUMPRODUCT('CSRHub Ratings'!$C22:$N22,'TNFD Mapping'!$C$22:$N$22)","v":61.978500000000004},{"$f":"SUMPRODUCT('CSRHub Ratings'!$C22:$N22,'TNFD Mapping'!$C$23:$N$23)","v":59.1755},{"$f":"SUMPRODUCT('CSRHub Ratings'!$C22:$N22,'TNFD Mapping'!$C$24:$N$24)","v":60.603999999999999},{"$f":"SUMPRODUCT('CSRHub Ratings'!$C22:$N22,'TNFD Mapping'!$C$25:$N$25)","v":60.8065},{"$f":"SUMPRODUCT('CSRHub Ratings'!$C22:$N22,'TNFD Mapping'!$C$26:$N$26)","v":60.741500000000002},{"$f":"SUMPRODUCT('CSRHub Ratings'!$C22:$N22,'TNFD Mapping'!$C$27:$N$27)","v":60.008499999999998},{"$f":"SUMPRODUCT('CSRHub Ratings'!$C22:$N22,'TNFD Mapping'!$C$28:$N$28)","v":60.042000000000002},{"$f":"SUMPRODUCT('CSRHub Ratings'!$C22:$N22,'TNFD Mapping'!$C$29:$N$29)","v":60.042000000000002}]
[{"$f":"'Enter Company Names'!J23","v":"Unilever PLC"},{"$f":"SUMPRODUCT('CSRHub Ratings'!C23:N23,'TNFD Mapping'!$C$15:$N$15)","v":61.964500000000008},{"$f":"SUMPRODUCT('CSRHub Ratings'!$C23:$N23,'TNFD Mapping'!$C$16:$N$16)","v":61.516000000000005},{"$f":"SUMPRODUCT('CSRHub Ratings'!$C23:$N23,'TNFD Mapping'!$C$17:$N$17)","v":61.125999999999998},{"$f":"SUMPRODUCT('CSRHub Ratings'!$C23:$N23,'TNFD Mapping'!$C$18:$N$18)","v":62.3095},{"$f":"SUMPRODUCT('CSRHub Ratings'!$C23:$N23,'TNFD Mapping'!$C$19:$N$19)","v":61.601499999999994},{"$f":"SUMPRODUCT('CSRHub Ratings'!$C23:$N23,'TNFD Mapping'!$C$20:$N$20)","v":62.430999999999997},{"$f":"SUMPRODUCT('CSRHub Ratings'!$C23:$N23,'TNFD Mapping'!$C$21:$N$21)","v":61.964500000000008},{"$f":"SUMPRODUCT('CSRHub Ratings'!$C23:$N23,'TNFD Mapping'!$C$22:$N$22)","v":62.503},{"$f":"SUMPRODUCT('CSRHub Ratings'!$C23:$N23,'TNFD Mapping'!$C$23:$N$23)","v":59.501999999999995},{"$f":"SUMPRODUCT('CSRHub Ratings'!$C23:$N23,'TNFD Mapping'!$C$24:$N$24)","v":61.101999999999997},{"$f":"SUMPRODUCT('CSRHub Ratings'!$C23:$N23,'TNFD Mapping'!$C$25:$N$25)","v":60.988},{"$f":"SUMPRODUCT('CSRHub Ratings'!$C23:$N23,'TNFD Mapping'!$C$26:$N$26)","v":60.866500000000002},{"$f":"SUMPRODUCT('CSRHub Ratings'!$C23:$N23,'TNFD Mapping'!$C$27:$N$27)","v":59.915499999999994},{"$f":"SUMPRODUCT('CSRHub Ratings'!$C23:$N23,'TNFD Mapping'!$C$28:$N$28)","v":60.181999999999995},{"$f":"SUMPRODUCT('CSRHub Ratings'!$C23:$N23,'TNFD Mapping'!$C$29:$N$29)","v":60.181999999999995}]
[{"$f":"'Enter Company Names'!J24","v":"Church & Dwight Co., Inc."},{"$f":"SUMPRODUCT('CSRHub Ratings'!C24:N24,'TNFD Mapping'!$C$15:$N$15)","v":57.63450000000001},{"$f":"SUMPRODUCT('CSRHub Ratings'!$C24:$N24,'TNFD Mapping'!$C$16:$N$16)","v":59.983500000000006},{"$f":"SUMPRODUCT('CSRHub Ratings'!$C24:$N24,'TNFD Mapping'!$C$17:$N$17)","v":59.54},{"$f":"SUMPRODUCT('CSRHub Ratings'!$C24:$N24,'TNFD Mapping'!$C$18:$N$18)","v":60.960999999999991},{"$f":"SUMPRODUCT('CSRHub Ratings'!$C24:$N24,'TNFD Mapping'!$C$19:$N$19)","v":59.967999999999989},{"$f":"SUMPRODUCT('CSRHub Ratings'!$C24:$N24,'TNFD Mapping'!$C$20:$N$20)","v":60.892499999999998},{"$f":"SUMPRODUCT('CSRHub Ratings'!$C24:$N24,'TNFD Mapping'!$C$21:$N$21)","v":59.997499999999995},{"$f":"SUMPRODUCT('CSRHub Ratings'!$C24:$N24,'TNFD Mapping'!$C$22:$N$22)","v":60.786500000000004},{"$f":"SUMPRODUCT('CSRHub Ratings'!$C24:$N24,'TNFD Mapping'!$C$23:$N$23)","v":57.224499999999999},{"$f":"SUMPRODUCT('CSRHub Ratings'!$C24:$N24,'TNFD Mapping'!$C$24:$N$24)","v":58.954500000000003},{"$f":"SUMPRODUCT('CSRHub Ratings'!$C24:$N24,'TNFD Mapping'!$C$25:$N$25)","v":58.725500000000004},{"$f":"SUMPRODUCT('CSRHub Ratings'!$C24:$N24,'TNFD Mapping'!$C$26:$N$26)","v":58.793999999999997},{"$f":"SUMPRODUCT('CSRHub Ratings'!$C24:$N24,'TNFD Mapping'!$C$27:$N$27)","v":57.938000000000002},{"$f":"SUMPRODUCT('CSRHub Ratings'!$C24:$N24,'TNFD Mapping'!$C$28:$N$28)","v":56.841999999999999},{"$f":"SUMPRODUCT('CSRHub Ratings'!$C24:$N24,'TNFD Mapping'!$C$29:$N$29)","v":56.841999999999999}]
[{"$f":"'Enter Company Names'!J25","v":"Edgewell Personal Care Company"},{"$f":"SUMPRODUCT('CSRHub Ratings'!C25:N25,'TNFD Mapping'!$C$15:$N$15)","v":55.616500000000002},{"$f":"SUMPRODUCT('CSRHub Ratings'!$C25:$N25,'TNFD Mapping'!$C$16:$N$16)","v":55.256000000000007},{"$f":"SUMPRODUCT('CSRHub Ratings'!$C25:$N25,'TNFD Mapping'!$C$17:$N$17)","v":54.992000000000004},{"$f":"SUMPRODUCT('CSRHub Ratings'!$C25:$N25,'TNFD Mapping'!$C$18:$N$18)","v":55.4405},{"$f":"SUMPRODUCT('CSRHub Ratings'!$C25:$N25,'TNFD Mapping'!$C$19:$N$19)","v":55.110500000000002},{"$f":"SUMPRODUCT('CSRHub Ratings'!$C25:$N25,'TNFD Mapping'!$C$20:$N$20)","v":55.393999999999998},{"$f":"SUMPRODUCT('CSRHub Ratings'!$C25:$N25,'TNFD Mapping'!$C$21:$N$21)","v":54.066499999999998},{"$f":"SUMPRODUCT('CSRHub Ratings'!$C25:$N25,'TNFD Mapping'!$C$22:$N$22)","v":55.592000000000006},{"$f":"SUMPRODUCT('CSRHub Ratings'!$C25:$N25,'TNFD Mapping'!$C$23:$N$23)","v":53.88600000000001},{"$f":"SUMPRODUCT('CSRHub Ratings'!$C25:$N25,'TNFD Mapping'!$C$24:$N$24)","v":54.841999999999992},{"$f":"SUMPRODUCT('CSRHub Ratings'!$C25:$N25,'TNFD Mapping'!$C$25:$N$25)","v":55.421000000000006},{"$f":"SUMPRODUCT('CSRHub Ratings'!$C25:$N25,'TNFD Mapping'!$C$26:$N$26)","v":55.467500000000001},{"$f":"SUMPRODUCT('CSRHub Ratings'!$C25:$N25,'TNFD Mapping'!$C$27:$N$27)","v":55.230500000000006},{"$f":"SUMPRODUCT('CSRHub Ratings'!$C25:$N25,'TNFD Mapping'!$C$28:$N$28)","v":55.052000000000007},{"$f":"SUMPRODUCT('CSRHub Ratings'!$C25:$N25,'TNFD Mapping'!$C$29:$N$29)","v":55.052000000000007}]
[{"$f":"'Enter Company Names'!J26","v":"BIC"},{"$f":"SUMPRODUCT('CSRHub Ratings'!C26:N26,'TNFD Mapping'!$C$15:$N$15)","v":58.003500000000003},{"$f":"SUMPRODUCT('CSRHub Ratings'!$C26:$N26,'TNFD Mapping'!$C$16:$N$16)","v":57.254000000000005},{"$f":"SUMPRODUCT('CSRHub Ratings'!$C26:$N26,'TNFD Mapping'!$C$17:$N$17)","v":56.777999999999999},{"$f":"SUMPRODUCT('CSRHub Ratings'!$C26:$N26,'TNFD Mapping'!$C$18:$N$18)","v":57.229500000000002},{"$f":"SUMPRODUCT('CSRHub Ratings'!$C26:$N26,'TNFD Mapping'!$C$19:$N$19)","v":56.843499999999999},{"$f":"SUMPRODUCT('CSRHub Ratings'!$C26:$N26,'TNFD Mapping'!$C$20:$N$20)","v":57.102000000000004},{"$f":"SUMPRODUCT('CSRHub Ratings'!$C26:$N26,'TNFD Mapping'!$C$21:$N$21)","v":56.769499999999994},{"$f":"SUMPRODUCT('CSRHub Ratings'!$C26:$N26,'TNFD Mapping'!$C$22:$N$22)","v":57.668000000000006},{"$f":"SUMPRODUCT('CSRHub Ratings'!$C26:$N26,'TNFD Mapping'!$C$23:$N$23)","v":56.372000000000007},{"$f":"SUMPRODUCT('CSRHub Ratings'!$C26:$N26,'TNFD Mapping'!$C$24:$N$24)","v":57.655000000000001},{"$f":"SUMPRODUCT('CSRHub Ratings'!$C26:$N26,'TNFD Mapping'!$C$25:$N$25)","v":58.283000000000001},{"$f":"SUMPRODUCT('CSRHub Ratings'!$C26:$N26,'TNFD Mapping'!$C$26:$N$26)","v":58.410500000000006},{"$f":"SUMPRODUCT('CSRHub Ratings'!$C26:$N26,'TNFD Mapping'!$C$27:$N$27)","v":58.279500000000006},{"$f":"SUMPRODUCT('CSRHub Ratings'!$C26:$N26,'TNFD Mapping'!$C$28:$N$28)","v":56.512000000000008},{"$f":"SUMPRODUCT('CSRHub Ratings'!$C26:$N26,'TNFD Mapping'!$C$29:$N$29)","v":56.512000000000008}]
[{"$f":"'Enter Company Names'!J27","v":"Johnson & Johnson"},{"$f":"SUMPRODUCT('CSRHub Ratings'!C27:N27,'TNFD Mapping'!$C$15:$N$15)","v":61.352000000000004},{"$f":"SUMPRODUCT('CSRHub Ratings'!$C27:$N27,'TNFD Mapping'!$C$16:$N$16)","v":61.001500000000007},{"$f":"SUMPRODUCT('CSRHub Ratings'!$C27:$N27,'TNFD Mapping'!$C$17:$N$17)","v":60.807000000000002},{"$f":"SUMPRODUCT('CSRHub Ratings'!$C27:$N27,'TNFD Mapping'!$C$18:$N$18)","v":61.533499999999997},{"$f":"SUMPRODUCT('CSRHub Ratings'!$C27:$N27,'TNFD Mapping'!$C$19:$N$19)","v":61.133500000000005},{"$f":"SUMPRODUCT('CSRHub Ratings'!$C27:$N27,'TNFD Mapping'!$C$20:$N$20)","v":61.66},{"$f":"SUMPRODUCT('CSRHub Ratings'!$C27:$N27,'TNFD Mapping'!$C$21:$N$21)","v":59.024500000000003},{"$f":"SUMPRODUCT('CSRHub Ratings'!$C27:$N27,'TNFD Mapping'!$C$22:$N$22)","v":61.649000000000001},{"$f":"SUMPRODUCT('CSRHub Ratings'!$C27:$N27,'TNFD Mapping'!$C$23:$N$23)","v":60.392500000000005},{"$f":"SUMPRODUCT('CSRHub Ratings'!$C27:$N27,'TNFD Mapping'!$C$24:$N$24)","v":61.157499999999999},{"$f":"SUMPRODUCT('CSRHub Ratings'!$C27:$N27,'TNFD Mapping'!$C$25:$N$25)","v":60.574000000000005},{"$f":"SUMPRODUCT('CSRHub Ratings'!$C27:$N27,'TNFD Mapping'!$C$26:$N$26)","v":60.447500000000005},{"$f":"SUMPRODUCT('CSRHub Ratings'!$C27:$N27,'TNFD Mapping'!$C$27:$N$27)","v":59.794500000000006},{"$f":"SUMPRODUCT('CSRHub Ratings'!$C27:$N27,'TNFD Mapping'!$C$28:$N$28)","v":60.388000000000005},{"$f":"SUMPRODUCT('CSRHub Ratings'!$C27:$N27,'TNFD Mapping'!$C$29:$N$29)","v":60.388000000000005}]
[{"$f":"'Enter Company Names'!J28","v":"Amazon.com, Inc."},{"$f":"SUMPRODUCT('CSRHub Ratings'!C28:N28,'TNFD Mapping'!$C$15:$N$15)","v":51.9465},{"$f":"SUMPRODUCT('CSRHub Ratings'!$C28:$N28,'TNFD Mapping'!$C$16:$N$16)","v":50.406500000000001},{"$f":"SUMPRODUCT('CSRHub Ratings'!$C28:$N28,'TNFD Mapping'!$C$17:$N$17)","v":50.494999999999997},{"$f":"SUMPRODUCT('CSRHub Ratings'!$C28:$N28,'TNFD Mapping'!$C$18:$N$18)","v":50.153999999999996},{"$f":"SUMPRODUCT('CSRHub Ratings'!$C28:$N28,'TNFD Mapping'!$C$19:$N$19)","v":50.471999999999994},{"$f":"SUMPRODUCT('CSRHub Ratings'!$C28:$N28,'TNFD Mapping'!$C$20:$N$20)","v":50.289999999999992},{"$f":"SUMPRODUCT('CSRHub Ratings'!$C28:$N28,'TNFD Mapping'!$C$21:$N$21)","v":49.896500000000003},{"$f":"SUMPRODUCT('CSRHub Ratings'!$C28:$N28,'TNFD Mapping'!$C$22:$N$22)","v":50.430999999999997},{"$f":"SUMPRODUCT('CSRHub Ratings'!$C28:$N28,'TNFD Mapping'!$C$23:$N$23)","v":51.025500000000001},{"$f":"SUMPRODUCT('CSRHub Ratings'!$C28:$N28,'TNFD Mapping'!$C$24:$N$24)","v":50.785499999999992},{"$f":"SUMPRODUCT('CSRHub Ratings'!$C28:$N28,'TNFD Mapping'!$C$25:$N$25)","v":51.077000000000005},{"$f":"SUMPRODUCT('CSRHub Ratings'!$C28:$N28,'TNFD Mapping'!$C$26:$N$26)","v":50.941000000000003},{"$f":"SUMPRODUCT('CSRHub Ratings'!$C28:$N28,'TNFD Mapping'!$C$27:$N$27)","v":50.987000000000002},{"$f":"SUMPRODUCT('CSRHub Ratings'!$C28:$N28,'TNFD Mapping'!$C$28:$N$28)","v":51.636000000000003},{"$f":"SUMPRODUCT('CSRHub Ratings'!$C28:$N28,'TNFD Mapping'!$C$29:$N$29)","v":51.636000000000003}]
[{"$f":"'Enter Company Names'!J29","v":"Groupe Danone"},{"$f":"SUMPRODUCT('CSRHub Ratings'!C29:N29,'TNFD Mapping'!$C$15:$N$15)","v":63.580500000000008},{"$f":"SUMPRODUCT('CSRHub Ratings'!$C29:$N29,'TNFD Mapping'!$C$16:$N$16)","v":64.776500000000013},{"$f":"SUMPRODUCT('CSRHub Ratings'!$C29:$N29,'TNFD Mapping'!$C$17:$N$17)","v":64.201000000000008},{"$f":"SUMPRODUCT('CSRHub Ratings'!$C29:$N29,'TNFD Mapping'!$C$18:$N$18)","v":65.522499999999994},{"$f":"SUMPRODUCT('CSRHub Ratings'!$C29:$N29,'TNFD Mapping'!$C$19:$N$19)","v":64.622500000000002},{"$f":"SUMPRODUCT('CSRHub Ratings'!$C29:$N29,'TNFD Mapping'!$C$20:$N$20)","v":65.494},{"$f":"SUMPRODUCT('CSRHub Ratings'!$C29:$N29,'TNFD Mapping'!$C$21:$N$21)","v":62.800000000000004},{"$f":"SUMPRODUCT('CSRHub Ratings'!$C29:$N29,'TNFD Mapping'!$C$22:$N$22)","v":65.745000000000005},{"$f":"SUMPRODUCT('CSRHub Ratings'!$C29:$N29,'TNFD Mapping'!$C$23:$N$23)","v":62.2575},{"$f":"SUMPRODUCT('CSRHub Ratings'!$C29:$N29,'TNFD Mapping'!$C$24:$N$24)","v":64.297499999999999},{"$f":"SUMPRODUCT('CSRHub Ratings'!$C29:$N29,'TNFD Mapping'!$C$25:$N$25)","v":64.504000000000005},{"$f":"SUMPRODUCT('CSRHub Ratings'!$C29:$N29,'TNFD Mapping'!$C$26:$N$26)","v":64.532499999999999},{"$f":"SUMPRODUCT('CSRHub Ratings'!$C29:$N29,'TNFD Mapping'!$C$27:$N$27)","v":63.689499999999995},{"$f":"SUMPRODUCT('CSRHub Ratings'!$C29:$N29,'TNFD Mapping'!$C$28:$N$28)","v":62.902000000000001},{"$f":"SUMPRODUCT('CSRHub Ratings'!$C29:$N29,'TNFD Mapping'!$C$29:$N$29)","v":62.902000000000001}]
[{"$f":"'Enter Company Names'!J30","v":"Walmart Inc."},{"$f":"SUMPRODUCT('CSRHub Ratings'!C30:N30,'TNFD Mapping'!$C$15:$N$15)","v":56.124500000000005},{"$f":"SUMPRODUCT('CSRHub Ratings'!$C30:$N30,'TNFD Mapping'!$C$16:$N$16)","v":55.811000000000007},{"$f":"SUMPRODUCT('CSRHub Ratings'!$C30:$N30,'TNFD Mapping'!$C$17:$N$17)","v":56.045000000000002},{"$f":"SUMPRODUCT('CSRHub Ratings'!$C30:$N30,'TNFD Mapping'!$C$18:$N$18)","v":56.181000000000004},{"$f":"SUMPRODUCT('CSRHub Ratings'!$C30:$N30,'TNFD Mapping'!$C$19:$N$19)","v":56.17},{"$f":"SUMPRODUCT('CSRHub Ratings'!$C30:$N30,'TNFD Mapping'!$C$20:$N$20)","v":56.3005},{"$f":"SUMPRODUCT('CSRHub Ratings'!$C30:$N30,'TNFD Mapping'!$C$21:$N$21)","v":55.429000000000009},{"$f":"SUMPRODUCT('CSRHub Ratings'!$C30:$N30,'TNFD Mapping'!$C$22:$N$22)","v":55.821500000000007},{"$f":"SUMPRODUCT('CSRHub Ratings'!$C30:$N30,'TNFD Mapping'!$C$23:$N$23)","v":55.945},{"$f":"SUMPRODUCT('CSRHub Ratings'!$C30:$N30,'TNFD Mapping'!$C$24:$N$24)","v":55.446000000000005},{"$f":"SUMPRODUCT('CSRHub Ratings'!$C30:$N30,'TNFD Mapping'!$C$25:$N$25)","v":54.602500000000006},{"$f":"SUMPRODUCT('CSRHub Ratings'!$C30:$N30,'TNFD Mapping'!$C$26:$N$26)","v":54.483000000000004},{"$f":"SUMPRODUCT('CSRHub Ratings'!$C30:$N30,'TNFD Mapping'!$C$27:$N$27)","v":54.233000000000004},{"$f":"SUMPRODUCT('CSRHub Ratings'!$C30:$N30,'TNFD Mapping'!$C$28:$N$28)","v":55.848000000000013},{"$f":"SUMPRODUCT('CSRHub Ratings'!$C30:$N30,'TNFD Mapping'!$C$29:$N$29)","v":55.848000000000013}]
[{"$f":"'Enter Company Names'!J31","v":"Carrefour"},{"$f":"SUMPRODUCT('CSRHub Ratings'!C31:N31,'TNFD Mapping'!$C$15:$N$15)","v":58.347500000000004},{"$f":"SUMPRODUCT('CSRHub Ratings'!$C31:$N31,'TNFD Mapping'!$C$16:$N$16)","v":59.981999999999999},{"$f":"SUMPRODUCT('CSRHub Ratings'!$C31:$N31,'TNFD Mapping'!$C$17:$N$17)","v":59.664999999999999},{"$f":"SUMPRODUCT('CSRHub Ratings'!$C31:$N31,'TNFD Mapping'!$C$18:$N$18)","v":60.699500000000008},{"$f":"SUMPRODUCT('CSRHub Ratings'!$C31:$N31,'TNFD Mapping'!$C$19:$N$19)","v":59.952500000000001},{"$f":"SUMPRODUCT('CSRHub Ratings'!$C31:$N31,'TNFD Mapping'!$C$20:$N$20)","v":60.613500000000002},{"$f":"SUMPRODUCT('CSRHub Ratings'!$C31:$N31,'TNFD Mapping'!$C$21:$N$21)","v":60.110500000000009},{"$f":"SUMPRODUCT('CSRHub Ratings'!$C31:$N31,'TNFD Mapping'!$C$22:$N$22)","v":60.500500000000002},{"$f":"SUMPRODUCT('CSRHub Ratings'!$C31:$N31,'TNFD Mapping'!$C$23:$N$23)","v":58.72},{"$f":"SUMPRODUCT('CSRHub Ratings'!$C31:$N31,'TNFD Mapping'!$C$24:$N$24)","v":59.741999999999997},{"$f":"SUMPRODUCT('CSRHub Ratings'!$C31:$N31,'TNFD Mapping'!$C$25:$N$25)","v":58.952500000000001},{"$f":"SUMPRODUCT('CSRHub Ratings'!$C31:$N31,'TNFD Mapping'!$C$26:$N$26)","v":59.038499999999999},{"$f":"SUMPRODUCT('CSRHub Ratings'!$C31:$N31,'TNFD Mapping'!$C$27:$N$27)","v":58.463500000000003},{"$f":"SUMPRODUCT('CSRHub Ratings'!$C31:$N31,'TNFD Mapping'!$C$28:$N$28)","v":58.476000000000006},{"$f":"SUMPRODUCT('CSRHub Ratings'!$C31:$N31,'TNFD Mapping'!$C$29:$N$29)","v":58.476000000000006}]

{"sheet":"TNFD Mapping","index":4,"n_rows":29,"n_cols":14,"rows_kept":29,"cut":false,"hidden":false,"merged":[[7,1,9,1]]}
[]
[]
[]
[]
[]
[]
[null,"CSRHub TNFD Mapping"]
[null,"Below is a mapping of CSRHub data to the SDGs. The model was developed by our partner Valutus, under the title \"Materiality Matters.\" You can learn more about Valutus and its work here https://valutus.com/."]
[]
[]
[null,"Reach out to CSRHub to request a custom mapping."]
[]
[]
[null,"TNFD Description","Community Dev & Philanthropy","Human Rights & Supply Chain","Product","Compensation & Benefits","Diversity & Labor Rights","Training, Health & Safety","Energy & Climate Change","Environment Policy & Reporting","Resource Management","Board","Leadership Ethics","Transparency & Reporting"]
[null,"GHG emissions",null,null,null,null,null,null,0.55000000000000004,0.2,null,null,0.15,0.1]
[null,"Total spatial footprint",null,null,null,null,null,null,null,0.4,0.25,null,0.2,0.15]
[null,"Extent of land/ freshwater/ ocean-use\nchange",null,null,null,null,null,null,null,0.3,0.3,null,0.2,0.2]
[null,"Pollutants released to soil split by type\n",null,null,null,null,null,null,null,0.45,0.3,null,0.15,0.1]
[null,"Wastewater discharged",null,null,null,null,null,null,null,0.35,0.3,null,0.15,0.2]
[null,"Waste generation and disposal\n",null,null,null,null,null,null,null,0.45,0.3,null,0.1,0.15]
[null,"Plastic pollution",null,null,0.45,null,null,null,null,0.25,0.15,null,0.05,0.1]
[null,"Non-GHG air pollutants",null,null,null,null,null,null,null,0.55000000000000004,0.2,null,0.1,0.15]
[null,"Water withdrawal and consumption\nfrom areas of water scarcity",0.2,null,null,null,null,null,null,null,0.35,null,0.2,0.25]
[null,"Quantity of high-risk natural commodities sourced from land/ocean/ freshwater",0.15,null,null,null,null,null,null,0.35,0.2,null,0.15,0.15]
[null,"Measures against unintentional introduction of invasive alien species (IAS).",null,null,null,null,null,null,null,0.55000000000000004,null,null,0.2,0.25]
[null,"Ecosystem condition",null,null,null,null,null,null,null,0.55000000000000004,null,null,0.25,0.2]
[null,"Species extinction risk",null,null,null,null,null,null,null,0.45,null,null,0.35,0.2]
[null,"Risk",null,null,null,null,null,null,null,0.2,0.2,0.2,0.2,0.2]
[null,"Opportunity",null,null,null,null,null,null,null,0.2,0.2,0.2,0.2,0.2]